bitfinex/quotes_BTCUSD_20250523
["timestamp","ask_amount","ask_price","bid_price","bid_amount"]
[1748011322515,0.36648993,109610.0,109600.0,0.381]
[1748011323775,0.36648993,109610.0,109600.0,0.002]
[1748011323986,0.18251505,109580.0,109560.0,0.342]
[1748011324197,0.19165812,109570.0,109560.0,0.342]
[1748011324404,0.19165812,109570.0,109560.0,0.72112]
[1748011324636,0.19165812,109570.0,109560.0,0.38112]
[1748011324838,0.19165812,109570.0,109560.0,0.38064]
[1748011325188,0.19165812,109570.0,109560.0,0.66404]
[1748011325399,0.19170881,109570.0,109560.0,0.41730735]
[1748011325729,0.19170881,109570.0,109560.0,0.68070735]
[1748011325956,0.28125437,109570.0,109560.0,0.41330735]
[1748011326164,0.28125437,109570.0,109560.0,0.66004]
[1748011326165,0.34375437,109570.0,109560.0,0.66004]
[1748011326409,0.35829522,109570.0,109560.0,0.66004]
[1748011327043,0.35829522,109570.0,109560.0,0.66404]
[1748011327260,0.35829522,109570.0,109560.0,0.65817911]
[1748011327490,0.35829522,109570.0,109560.0,0.65417911]
[1748011327712,0.35829522,109570.0,109560.0,0.65517911]
[1748011327940,0.34375437,109570.0,109560.0,0.65517911]
[1748011331247,0.34375437,109570.0,109560.0,0.00313911]
[1748011331457,0.34375437,109570.0,109560.0,0.27661911]
[1748011331973,0.39638131,109570.0,109560.0,0.00313911]
[1748011332217,0.84187408,109570.0,109560.0,0.00313911]
[1748011332431,1.18977615,109570.0,109560.0,0.00313911]
[1748011332881,0.34,109560.0,109540.0,0.002]
[1748011333112,1.49746134,109550.0,109540.0,0.002]
[1748011333312,1.49746134,109550.0,109500.0,0.38957447]
[1748011333313,0.26419429,109510.0,109500.0,0.66305447]
[1748011333518,0.35373985,109510.0,109500.0,0.01077447]
[1748011333728,0.00913308,109490.0,109480.0,1.04616]
[1748011333943,0.19179816,109490.0,109480.0,1.04616]
[1748011334162,0.28134372,109490.0,109480.0,1.0728888]
[1748011334380,0.34294372,109490.0,109480.0,0.0267288]
[1748011334590,0.19181568,109480.0,109470.0,0.65236]
[1748011334817,0.19181568,109480.0,109470.0,0.37884]
[1748011334818,0.34296124,109480.0,109470.0,0.37884]
[1748011335033,0.33996124,109480.0,109470.0,0.37884]
[1748011335261,0.2534332,109470.0,109460.0,0.01128243]
[1748011335475,0.2534332,109470.0,109460.0,0.01971006]
[1748011335476,0.34297876,109470.0,109460.0,0.01971006]
[1748011335887,0.31287876,109470.0,109460.0,0.04634319]
[1748011336101,0.31287876,109470.0,109460.0,0.00893559]
[1748011336730,0.20096787,109470.0,109460.0,0.34893559]
[1748011336954,0.29051343,109470.0,109460.0,1.00149559]
[1748011337581,0.20096787,109470.0,109460.0,1.00149559]
[1748011338028,0.29051343,109470.0,109460.0,1.00149559]
[1748011338242,0.29051343,109470.0,109460.0,0.66149559]
[1748011338736,0.32181343,109470.0,109460.0,0.66149559]
[1748011339405,0.33939875,109470.0,109460.0,0.66149559]
[1748011339634,0.33939875,109470.0,109460.0,0.38789559]
[1748011339869,0.33939875,109470.0,109450.0,0.64021282]
[1748011339870,0.19185073,109460.0,109450.0,0.27368]
[1748011340072,0.28139629,109460.0,109450.0,0.65272]
[1748011340283,0.19186843,109450.0,109440.0,0.39384]
[1748011340488,0.19186843,109450.0,109440.0,1.04656]
[1748011340690,0.2722607,109460.0,109450.0,0.19186826]
[1748011340691,0.20098564,109460.0,109450.0,0.19186826]
[1748011340893,0.21012198,109460.0,109450.0,0.55575684]
[1748011341110,0.21012198,109460.0,109450.0,0.42554443]
[1748011341307,0.01827259,109450.0,109440.0,1.24758195]
[1748011341516,0.04468102,109450.0,109440.0,1.69377688]
[1748011341736,0.0274081,109450.0,109440.0,1.04105688]
[1748011341938,0.03654452,109450.0,109440.0,1.86048388]
[1748011342180,0.03654452,109450.0,109440.0,1.88812797]
[1748011342399,0.21019456,109470.0,109460.0,0.20098631]
[1748011342613,0.01827025,109460.0,109450.0,0.60410376]
[1748011342827,0.01827008,109460.0,109450.0,2.14917132]
[1748011343038,0.03654075,109460.0,109450.0,2.00736932]
[1748011343416,0.03654067,109460.0,109450.0,2.00736932]
[1748011343629,0.03654059,109460.0,109450.0,2.00736932]
[1748011343787,0.02740525,109460.0,109450.0,2.00736932]
[1748011343990,0.21019448,109470.0,109460.0,0.23408623]
[1748011344359,0.20106015,109470.0,109460.0,0.26618623]
[1748011344538,0.20106015,109470.0,109460.0,1.19535023]
[1748011344983,0.20106015,109470.0,109460.0,1.20448557]
[1748011345186,0.20106015,109470.0,109460.0,0.994364]
[1748011345412,0.19192557,109470.0,109460.0,0.660695]
[1748011345638,0.28247113,109470.0,109460.0,0.71912]
[1748011345820,0.28147113,109470.0,109460.0,0.99284]
[1748011346139,0.28147113,109470.0,109460.0,0.99484]
[1748011346335,0.19192557,109470.0,109460.0,0.99484]
[1748011347810,0.19192557,109470.0,109460.0,0.342]
[1748011348013,0.31893186,109470.0,109460.0,0.99484]
[1748011348219,0.28147113,109470.0,109460.0,0.65484]
[1748011348638,0.19192557,109470.0,109460.0,0.65484]
[1748011350458,0.19192557,109470.0,109460.0,0.83755514]
[1748011350706,0.18279082,109470.0,109460.0,0.65484]
[1748011350872,0.18279082,109470.0,109460.0,1.24711589]
[1748011351113,0.18279082,109470.0,109460.0,1.06440075]
[1748011351632,0.18279082,109470.0,109460.0,1.19483664]
[1748011351840,0.18279082,109470.0,109460.0,1.17249464]
[1748011352464,0.18279082,109470.0,109460.0,1.18094293]
[1748011352680,0.18279082,109470.0,109460.0,1.14038893]
[1748011352901,9.237e-05,109470.0,109460.0,1.47454963]
[1748011353111,0.01836128,109470.0,109460.0,1.50195589]
[1748011353318,0.01836128,109470.0,109460.0,1.52709633]
[1748011353534,0.009133,109490.0,109480.0,0.54093507]
[1748011353771,0.20093125,109490.0,109480.0,1.12268384]
[1748011353978,0.19179825,109490.0,109480.0,1.09851584]
[1748011354186,0.19179825,109490.0,109480.0,1.10696413]
[1748011354395,0.19179825,109490.0,109480.0,1.11609796]
[1748011354603,0.19179825,109490.0,109480.0,1.13551707]
[1748011354845,0.19179825,109490.0,109480.0,1.13651707]
[1748011355274,0.19179825,109490.0,109480.0,0.9355674]
[1748011355495,0.18266508,109490.0,109480.0,0.6426274]
[1748011355700,0.18266508,109490.0,109480.0,0.65699337]
[1748011356696,0.18266508,109490.0,109480.0,0.6462189]
[1748011356910,0.18266508,109490.0,109480.0,0.82890066]
[1748011357113,0.18266508,109490.0,109480.0,0.7998209]
[1748011358732,0.00913267,109490.0,109480.0,0.98250266]
[1748011358941,0.19179816,109490.0,109480.0,1.05683666]
[1748011359157,0.19179816,109490.0,109480.0,0.7642359]
[1748011359351,0.19179816,109490.0,109480.0,0.6461789]
[1748011359946,0.19179816,109490.0,109480.0,0.63181293]
[1748011360353,0.28134372,109490.0,109480.0,0.01809293]
[1748011360553,0.31284372,109490.0,109480.0,0.67057293]
[1748011361316,0.28134372,109490.0,109480.0,0.67057293]
[1748011362364,0.19179816,109490.0,109480.0,0.67057293]
[1748011362983,0.19179816,109490.0,109480.0,1.85628986]
[1748011362984,0.01826541,109490.0,109480.0,1.85628986]
[1748011363199,0.21006357,109490.0,109480.0,1.89398869]
[1748011363412,0.20093099,109490.0,109480.0,0.01809293]
[1748011363615,0.35657655,109490.0,109480.0,0.67057293]
[1748011363844,0.35657655,109490.0,109480.0,0.67061293]
[1748011364458,0.35657655,109490.0,109480.0,0.0326363]
[1748011364676,0.35657655,109490.0,109480.0,0.6851563]
[1748011365132,0.35657655,109490.0,109480.0,0.67670801]
[1748011365588,0.35657655,109490.0,109480.0,0.40298801]
[1748011365818,0.35657655,109490.0,109480.0,0.67670801]
[1748011366039,0.35657655,109490.0,109480.0,0.40298801]
[1748011366274,0.41049904,109490.0,109480.0,0.40298801]
[1748011366491,0.35657655,109490.0,109480.0,0.02418801]
[1748011367130,0.35657655,109490.0,109480.0,0.0317151]
[1748011367342,0.35657655,109490.0,109480.0,0.01717173]
[1748011367519,0.35757655,109490.0,109480.0,0.01717173]
[1748011367936,0.3772968,109490.0,109480.0,0.01717173]
[1748011368167,0.35857655,109490.0,109480.0,0.01717173]
[1748011370036,0.35857655,109490.0,109480.0,0.00864464]
[1748011370681,0.35757655,109490.0,109480.0,0.00864464]
[1748011370886,0.35657655,109490.0,109480.0,0.00864464]
[1748011371092,0.36157655,109490.0,109480.0,0.00864464]
[1748011371299,0.36357655,109490.0,109480.0,0.00864464]
[1748011371715,0.36157655,109490.0,109480.0,0.00864464]
[1748011372151,0.36657655,109490.0,109480.0,0.00864464]
[1748011374212,0.19181568,109480.0,109470.0,0.01955721]
[1748011374436,0.28136124,109480.0,109470.0,0.01955721]
[1748011375024,0.31406124,109480.0,109470.0,0.00864464]
[1748011375240,0.31806124,109480.0,109470.0,0.00864464]
[1748011375435,0.34996124,109480.0,109470.0,0.00864464]
[1748011375640,0.4042144,109480.0,109470.0,0.00864464]
[1748011376025,0.4042144,109480.0,109470.0,0.01717415]
[1748011376479,0.35296124,109480.0,109470.0,0.01717415]
[1748011376680,0.35296124,109480.0,109470.0,0.00852951]
[1748011378095,1.04116124,109480.0,109470.0,0.00852951]
[1748011379705,1.41596701,109480.0,109470.0,0.00852951]
[1748011379905,1.68972701,109480.0,109470.0,0.00852951]
[1748011380135,1.77924852,109480.0,109470.0,0.00852951]
[1748011380337,0.26817405,109470.0,109460.0,0.00013889]
[1748011380613,0.35771961,109470.0,109460.0,0.00013889]
[1748011380814,0.34317876,109470.0,109460.0,0.00013889]
[1748011381639,0.34517876,109470.0,109460.0,0.00013889]
[1748011381841,0.34717876,109470.0,109460.0,0.00013889]
[1748011382522,0.31687876,109470.0,109460.0,0.00013889]
[1748011382889,0.28537876,109470.0,109460.0,0.00013889]
[1748011383714,0.1958332,109470.0,109460.0,0.40263889]
[1748011384534,0.1918332,109470.0,109460.0,0.40263889]
[1748011384969,0.1938332,109470.0,109460.0,0.40263889]
[1748011386632,0.1938332,109470.0,109460.0,0.59448962]
[1748011386633,0.0111345,109470.0,109460.0,0.59448962]
[1748011386843,0.20296804,109470.0,109460.0,0.79687889]
[1748011387275,0.20296804,109470.0,109460.0,0.76617889]
[1748011387482,0.20296804,109470.0,109460.0,0.79817889]
[1748011387903,0.20296804,109470.0,109460.0,1.07197889]
[1748011388117,0.20296804,109470.0,109460.0,1.03997889]
[1748011388319,0.20296804,109470.0,109460.0,1.11997889]
[1748011388757,0.20296804,109470.0,109460.0,1.00817889]
[1748011390518,0.2925136,109470.0,109460.0,1.00817889]
[1748011392451,0.3240136,109470.0,109460.0,1.38673889]
[1748011392860,0.2925136,109470.0,109460.0,1.38673889]
[1748011393485,0.2925136,109470.0,109460.0,1.11293889]
[1748011393486,0.2875136,109470.0,109460.0,1.11293889]
[1748011393691,0.2875136,109470.0,109460.0,1.38673889]
[1748011395213,0.2875136,109470.0,109460.0,1.44825914]
[1748011395384,0.2875136,109470.0,109460.0,1.38673889]
[1748011396242,0.19796804,109470.0,109460.0,1.38673889]
[1748011399372,0.2875136,109470.0,109460.0,1.11293889]
[1748011399588,0.2875136,109470.0,109460.0,1.38673889]
[1748011399811,0.2875136,109470.0,109460.0,1.11293889]
[1748011400039,0.2875136,109470.0,109460.0,1.38673889]
[1748011400476,0.2875136,109470.0,109460.0,1.11293889]
[1748011400677,0.2875136,109470.0,109460.0,1.38673889]
[1748011401195,0.2875136,109470.0,109460.0,1.38669889]
[1748011401828,0.2875136,109470.0,109460.0,0.73437889]
[1748011402028,0.2875136,109470.0,109460.0,1.38669889]
[1748011402237,0.19796804,109470.0,109460.0,1.38669889]
[1748011402454,0.00913467,109470.0,109460.0,0.41251093]
[1748011402663,0.21010246,109470.0,109460.0,1.85639089]
[1748011402878,0.20096804,109470.0,109460.0,1.66454]
[1748011403089,0.18268176,109480.0,109470.0,0.20096786]
[1748011403301,0.20094976,109480.0,109470.0,0.0636]
[1748011404360,0.20094976,109480.0,109470.0,0.06588344]
[1748011404568,0.20294976,109480.0,109470.0,0.06588344]
[1748011404770,0.20494976,109480.0,109470.0,0.0636]
[1748011405315,0.20494976,109480.0,109470.0,0.25771672]
[1748011405632,0.20494976,109480.0,109470.0,0.671323]
[1748011405838,0.20494976,109480.0,109470.0,0.85402145]
[1748011406011,0.20494976,109480.0,109470.0,0.671323]
[1748011406456,0.20494976,109480.0,109470.0,0.85402145]
[1748011406651,0.19581543,109480.0,109470.0,0.88142578]
[1748011406893,0.21408277,109480.0,109470.0,0.88142595]
[1748011407097,0.21408277,109480.0,109470.0,0.89056062]
[1748011407519,0.01113333,109480.0,109470.0,1.32924017]
[1748011407636,0.22121634,109480.0,109470.0,1.32924026]
[1748011407840,0.02740058,109480.0,109470.0,1.33024026]
[1748011408041,0.1826484,109500.0,109490.0,0.18266508]
[1748011408243,0.01826341,109500.0,109490.0,2.04491625]
[1748011408454,0.2283083,109500.0,109490.0,2.02665125]
[1748011408652,0.01826366,109500.0,109490.0,2.03578433]
[1748011408863,0.20089447,109510.0,109500.0,0.0625]
[1748011409067,0.20089447,109510.0,109500.0,0.84688376]
[1748011409270,0.20089447,109510.0,109500.0,0.535448]
[1748011409471,0.18272122,109520.0,109510.0,0.19176322]
[1748011409684,0.18272122,109520.0,109510.0,1.45996072]
[1748011409883,0.18272122,109520.0,109510.0,1.31413267]
[1748011410131,0.18272122,109520.0,109510.0,1.18784017]
[1748011410327,0.18272122,109520.0,109510.0,1.12126117]
[1748011410537,0.18272122,109520.0,109510.0,1.46126117]
[1748011410735,0.19174554,109520.0,109510.0,1.76403278]
[1748011410952,0.18269403,109530.0,109520.0,0.26687611]
[1748011410953,0.20085795,109530.0,109520.0,0.26687611]
[1748011411132,0.20085795,109530.0,109520.0,1.43118304]
[1748011411339,0.20085795,109530.0,109520.0,1.248568]
[1748011411526,0.20085795,109530.0,109520.0,0.65224]
[1748011412171,0.20685795,109530.0,109520.0,0.65224]
[1748011412383,0.21185795,109530.0,109520.0,0.65224]
[1748011412536,0.21185795,109530.0,109520.0,0.877049]
[1748011413410,0.21185795,109530.0,109520.0,1.11088304]
[1748011413842,0.21185795,109530.0,109520.0,0.928268]
[1748011414069,0.2027282,109530.0,109520.0,1.11088304]
[1748011414288,0.011,109530.0,109520.0,1.58236068]
[1748011414512,0.02012916,109530.0,109520.0,1.58236068]
[1748011414976,0.2008211,109550.0,109540.0,0.25541061]
[1748011415239,0.03651181,109550.0,109540.0,0.65143435]
[1748011415464,0.2190571,109560.0,109550.0,0.58626503]
[1748011415675,0.20080303,109560.0,109550.0,1.33557425]
[1748011415881,0.20080303,109560.0,109550.0,1.274054]
[1748011416017,0.20080303,109560.0,109550.0,1.241362]
[1748011416210,0.20080303,109560.0,109550.0,0.899197]
[1748011416647,0.20080303,109560.0,109550.0,0.8993495]
[1748011416894,0.20080303,109560.0,109550.0,0.7185525]
[1748011417105,0.20080303,109560.0,109550.0,0.3785525]
[1748011417705,0.20083894,109540.0,109530.0,0.4749947]
[1748011417907,0.19783919,109540.0,109530.0,2.67041583]
[1748011418117,0.18871061,109540.0,109530.0,1.22416957]
[1748011418320,0.18871061,109540.0,109530.0,1.22733757]
[1748011418529,0.18871061,109540.0,109530.0,1.11215257]
[1748011418731,0.18571061,109540.0,109530.0,1.18215257]
[1748011418940,0.18571061,109540.0,109530.0,1.56664357]
[1748011419152,0.19171061,109540.0,109530.0,1.15381262]
[1748011419353,0.20083961,109540.0,109530.0,1.81454237]
[1748011419766,0.20996844,109540.0,109530.0,1.85627195]
[1748011419936,0.20996844,109540.0,109530.0,1.86127195]
[1748011420138,0.20083961,109540.0,109530.0,1.85214237]
[1748011420589,0.1917107,109540.0,109530.0,1.58614442]
[1748011421034,0.1917107,109540.0,109530.0,1.77787254]
[1748011421875,0.1917107,109540.0,109530.0,1.7778727]
[1748011422082,0.1917107,109540.0,109530.0,1.78700253]
[1748011423797,0.1917107,109540.0,109530.0,1.79613228]
[1748011424339,0.1917107,109540.0,109530.0,1.80526194]
[1748011425600,0.1917107,109540.0,109530.0,1.76874279]
[1748011425804,0.1917107,109540.0,109530.0,0.95796357]
[1748011426136,0.1917107,109540.0,109530.0,0.81419257]
[1748011426370,0.1917107,109540.0,109530.0,1.46571257]
[1748011426817,0.1917107,109540.0,109530.0,1.82533957]
[1748011427015,0.1825817,109540.0,109530.0,1.83446948]
[1748011427223,0.1825817,109540.0,109530.0,1.82033957]
[1748011427429,0.1825817,109540.0,109530.0,1.81533957]
[1748011427585,0.1825817,109540.0,109530.0,1.81833957]
[1748011428870,0.18256503,109550.0,109540.0,0.5225817]
[1748011429137,0.18256503,109550.0,109540.0,0.699627]
[1748011429957,0.18256503,109550.0,109540.0,0.34]
[1748011430176,0.21416503,109550.0,109540.0,0.34]
[1748011430376,0.33431059,109550.0,109540.0,0.99148]
[1748011430605,0.33531059,109550.0,109540.0,0.99148]
[1748011431886,0.33531059,109550.0,109540.0,0.34]
[1748011432141,0.33531059,109550.0,109540.0,0.99148]
[1748011433752,0.33531059,109550.0,109540.0,0.34]
[1748011433949,0.33531059,109550.0,109540.0,0.99148]
[1748011437298,0.27311059,109550.0,109540.0,0.99148]
[1748011437502,0.19269328,109550.0,109540.0,1.55194661]
[1748011437704,0.19269328,109550.0,109540.0,1.421107]
[1748011437705,0.20182128,109550.0,109540.0,1.421107]
[1748011438532,0.028384,109550.0,109540.0,2.2595753]
[1748011438703,0.21094903,109550.0,109540.0,2.31494664]
[1748011438909,0.21094903,109550.0,109540.0,2.38559572]
[1748011439133,0.21094903,109550.0,109540.0,2.33320422]
[1748011439534,0.21094903,109550.0,109540.0,2.32407547]
[1748011439737,0.21094903,109550.0,109540.0,2.33498804]
[1748011439947,0.21094903,109550.0,109540.0,2.34411679]
[1748011440080,0.21094903,109550.0,109540.0,2.39650829]
[1748011440284,0.20182128,109550.0,109540.0,1.92365821]
[1748011440496,0.20182128,109550.0,109540.0,1.93278704]
[1748011440713,0.20182128,109550.0,109540.0,1.65005821]
[1748011441114,0.20182128,109550.0,109540.0,1.65918704]
[1748011441411,0.20182128,109550.0,109540.0,1.6093293]
[1748011441611,0.19269328,109550.0,109540.0,0.94372195]
[1748011441792,0.19269328,109550.0,109540.0,1.39986365]
[1748011442038,0.19269328,109550.0,109540.0,1.42725048]
[1748011442246,0.19269328,109550.0,109540.0,1.49055064]
[1748011442469,0.18356503,109550.0,109540.0,1.48142173]
[1748011442876,0.18356503,109550.0,109540.0,1.49055056]
[1748011443087,0.0101275,109550.0,109540.0,1.61289422]
[1748011443290,0.2109481,109550.0,109540.0,1.60376572]
[1748011443694,0.21059876,109550.0,109540.0,1.39379744]
[1748011443906,0.19169319,109550.0,109540.0,1.08979495]
[1748011444326,0.19169319,109550.0,109540.0,1.09079495]
[1748011444546,0.19169319,109550.0,109540.0,2.15147295]
[1748011444753,0.19169319,109550.0,109540.0,1.86252995]
[1748011444965,0.19169319,109550.0,109540.0,1.09279495]
[1748011445145,0.19169319,109550.0,109540.0,0.73312795]
[1748011445350,0.19169319,109550.0,109540.0,0.08172795]
[1748011445586,0.19169319,109550.0,109540.0,0.73312795]
[1748011446183,0.22279319,109550.0,109540.0,0.08172795]
[1748011446386,0.22279319,109550.0,109540.0,0.73312795]
[1748011446591,0.34333875,109550.0,109540.0,0.73312795]
[1748011447360,0.22279319,109550.0,109540.0,0.66312795]
[1748011447574,0.19169319,109550.0,109540.0,1.01975495]
[1748011447811,0.19269319,109550.0,109540.0,0.66012795]
[1748011448859,0.19269319,109550.0,109530.0,0.122849]
[1748011448860,0.19171061,109540.0,109530.0,0.122849]
[1748011449069,0.19171061,109540.0,109530.0,1.11453043]
[1748011449277,0.19171061,109540.0,109530.0,0.93290943]
[1748011450104,0.19171061,109540.0,109530.0,1.16486643]
[1748011450327,0.19171061,109540.0,109530.0,0.77422943]
[1748011450530,0.19171061,109540.0,109530.0,1.04778943]
[1748011450736,0.19171061,109540.0,109530.0,1.04978943]
[1748011450957,0.19171061,109540.0,109530.0,1.013587]
[1748011451156,0.19171061,109540.0,109530.0,0.65396]
[1748011451832,0.19171061,109540.0,109530.0,0.825961]
[1748011452032,0.19171061,109540.0,109530.0,0.805661]
[1748011452230,0.19171061,109540.0,109530.0,0.65396]
[1748011452377,0.19171061,109540.0,109530.0,1.332583]
[1748011452581,0.19171061,109540.0,109530.0,1.387688]
[1748011452777,0.19171061,109540.0,109530.0,1.273819]
[1748011452988,0.19171061,109540.0,109530.0,1.083587]
[1748011453182,0.19171061,109540.0,109530.0,1.14510725]
[1748011453385,0.19171061,109540.0,109530.0,1.278096]
[1748011453590,0.19171061,109540.0,109530.0,1.083587]
[1748011454486,0.19171061,109540.0,109530.0,1.293208]
[1748011455308,0.19171061,109540.0,109530.0,1.000021]
[1748011455514,0.19171061,109540.0,109530.0,1.423587]
[1748011455717,0.19171061,109540.0,109530.0,1.06396]
[1748011455919,0.34455617,109540.0,109530.0,1.06396]
[1748011456326,0.34455617,109540.0,109530.0,1.45788]
[1748011456948,0.20083944,109540.0,109530.0,1.64047837]
[1748011457161,0.20083944,109540.0,109530.0,1.64960828]
[1748011457380,0.19107932,109560.0,109540.0,0.53171003]
[1748011457602,0.21905669,109560.0,109550.0,0.81666292]
[1748011457843,0.00912716,109560.0,109550.0,0.79612503]
[1748011458050,0.2027847,109570.0,109560.0,0.5316757]
[1748011458275,0.2027847,109570.0,109560.0,0.7174]
[1748011460675,0.2067847,109570.0,109560.0,0.7174]
[1748011461290,0.2027847,109570.0,109560.0,0.7174]
[1748011461492,0.2057847,109570.0,109560.0,0.7174]
[1748011461870,0.2057847,109570.0,109560.0,0.3774]
[1748011462862,0.2373847,109570.0,109560.0,0.3774]
[1748011463570,0.2698847,109570.0,109560.0,0.65096]
[1748011465471,0.19167562,109560.0,109550.0,0.34]
[1748011465696,0.19167562,109560.0,109550.0,0.99092]
[1748011465934,0.22327562,109560.0,109550.0,0.99092]
[1748011467110,0.22427562,109560.0,109550.0,0.99092]
[1748011468846,0.20083927,109540.0,109530.0,0.73392]
[1748011469035,0.20083927,109540.0,109530.0,1.587536]
[1748011469949,0.20083927,109540.0,109530.0,1.3848]
[1748011470190,0.20083927,109540.0,109530.0,1.80404523]
[1748011470368,0.20083927,109540.0,109530.0,1.81317514]
[1748011470579,0.20083927,109540.0,109530.0,1.8273048]
[1748011470838,0.00912841,109540.0,109530.0,1.92270456]
[1748011471047,0.00912766,109550.0,109540.0,0.5971088]
[1748011471248,0.21907669,109550.0,109540.0,1.75184586]
[1748011471485,0.20994903,109550.0,109540.0,1.0174517]
[1748011471688,0.20994903,109550.0,109540.0,0.99658061]
[1748011471890,0.20994903,109550.0,109540.0,1.00570944]
[1748011472120,0.01825508,109550.0,109540.0,1.18022479]
[1748011472328,0.20992995,109560.0,109550.0,0.60250665]
[1748011472545,0.21905736,109560.0,109550.0,1.93142165]
[1748011472730,0.20080311,109560.0,109550.0,0.863342]
[1748011472938,0.20080311,109560.0,109550.0,1.05503511]
[1748011473174,0.20080311,109560.0,109550.0,0.863342]
[1748011473379,0.19167578,109560.0,109550.0,0.809025]
[1748011473591,0.00912691,109560.0,109550.0,1.02810177]
[1748011473803,0.2027847,109570.0,109560.0,0.34]
[1748011474013,0.2027847,109570.0,109560.0,0.71736]
[1748011474428,0.2027847,109570.0,109560.0,0.90903578]
[1748011474668,0.2027847,109570.0,109560.0,0.71736]
[1748011474850,0.2047847,109570.0,109560.0,0.71736]
[1748011475789,0.01312591,109570.0,109560.0,1.74628346]
[1748011476058,0.02225207,109570.0,109560.0,1.89902902]
[1748011476282,0.22303669,109570.0,109560.0,1.88990219]
[1748011476507,0.21391078,109570.0,109560.0,1.84787511]
[1748011476728,0.20478462,109570.0,109560.0,1.82629328]
[1748011476943,0.20278462,109570.0,109560.0,1.89694061]
[1748011477180,0.20378462,109570.0,109560.0,1.84454736]
[1748011477857,0.2129112,109570.0,109560.0,1.84454736]
[1748011478043,0.2129112,109570.0,109560.0,0.87061917]
[1748011478044,0.20378479,109570.0,109560.0,0.87061917]
[1748011478344,0.20378479,109570.0,109560.0,0.72607817]
[1748011478971,0.20378479,109570.0,109560.0,0.99959817]
[1748011479690,0.35603035,109570.0,109560.0,0.00871817]
[1748011479895,0.43045242,109570.0,109560.0,0.38539817]
[1748011480340,0.43045242,109570.0,109560.0,0.37668]
[1748011481230,0.35603035,109570.0,109560.0,0.37668]
[1748011481441,0.012126,109570.0,109560.0,1.06113761]
[1748011481667,0.21291012,109570.0,109560.0,1.05201078]
[1748011481909,0.2220367,109570.0,109560.0,1.06113795]
[1748011482119,0.003,109570.0,109560.0,1.13516478]
[1748011483424,0.003,109570.0,109560.0,1.14388094]
[1748011483676,0.003,109570.0,109560.0,1.24796735]
[1748011484515,0.002,109570.0,109560.0,1.24796735]
[1748011484917,0.002,109570.0,109560.0,1.24896735]
[1748011487434,0.002,109570.0,109560.0,1.58896735]
[1748011488057,0.002,109590.0,109580.0,0.28803213]
[1748011488253,0.002,109590.0,109580.0,4.39516794]
[1748011489069,0.002,109590.0,109580.0,4.73516794]
[1748011489275,0.00250903,109590.0,109580.0,4.73516794]
[1748011490041,0.00350903,109590.0,109580.0,4.73516794]
[1748011490225,0.00350903,109590.0,109580.0,4.75479667]
[1748011490452,0.00912258,109610.0,109600.0,0.209853]
[1748011490681,0.18454295,109630.0,109610.0,0.54983343]
[1748011490924,0.19157078,109620.0,109610.0,0.53158835]
[1748011491171,0.19157078,109620.0,109610.0,2.50604852]
[1748011491349,0.18244845,109620.0,109610.0,1.61722125]
[1748011491612,0.18244845,109620.0,109610.0,1.8088096]
[1748011491818,0.18244845,109620.0,109610.0,1.61722125]
[1748011492646,0.18244845,109620.0,109610.0,1.56356252]
[1748011493088,0.18444845,109620.0,109610.0,1.56356252]
[1748011494452,0.18444845,109620.0,109610.0,1.16495952]
[1748011494678,0.25024845,109620.0,109610.0,1.43839952]
[1748011495527,0.18444845,109620.0,109610.0,1.43839952]
[1748011499193,0.21724845,109620.0,109610.0,1.43839952]
[1748011500730,0.24944845,109620.0,109610.0,1.41438727]
[1748011505900,0.21724845,109620.0,109610.0,1.41438727]
[1748011506124,0.18444845,109620.0,109610.0,1.41438727]
[1748011507048,0.24724845,109620.0,109610.0,1.41438727]
[1748011509041,0.24724845,109620.0,109610.0,1.41362727]
[1748011509650,0.18444845,109620.0,109610.0,1.41362727]
[1748011509868,0.18444845,109620.0,109610.0,0.76446727]
[1748011510065,0.18444845,109620.0,109610.0,1.41362727]
[1748011512562,0.18444845,109620.0,109610.0,1.07362727]
[1748011516516,0.002,109620.0,109610.0,1.67918527]
[1748011516748,0.002,109620.0,109610.0,2.05470554]
[1748011517196,0.00215269,109630.0,109620.0,0.28945556]
[1748011517437,0.00215269,109630.0,109620.0,4.70506512]
[1748011518133,0.21429275,109660.0,109650.0,0.20063813]
[1748011518315,0.18249275,109660.0,109650.0,1.15635694]
[1748011518568,0.18249275,109660.0,109650.0,1.04307894]
[1748011519008,0.18249275,109660.0,109650.0,0.67195994]
[1748011519237,0.18249275,109660.0,109650.0,0.64916]
[1748011523445,0.18249275,109660.0,109650.0,0.65786553]
[1748011524326,0.18249275,109660.0,109650.0,0.38446553]
[1748011524540,0.18249275,109660.0,109650.0,0.65782553]
[1748011524756,0.18249275,109660.0,109650.0,0.64912]
[1748011527250,0.18249275,109660.0,109650.0,0.98912]
[1748011528655,0.18243808,109670.0,109660.0,0.34]
[1748011528867,0.18259048,109670.0,109660.0,0.73356]
[1748011529514,0.18259048,109670.0,109660.0,0.92506099]
[1748011529751,0.18259048,109670.0,109660.0,0.93418]
[1748011529965,0.18259048,109670.0,109660.0,0.79508025]
[1748011530132,0.21359048,109670.0,109660.0,0.73356]
[1748011530740,0.18259048,109670.0,109660.0,0.73356]
[1748011531524,0.21329048,109670.0,109660.0,1.00688]
[1748011531732,0.18259048,109670.0,109660.0,1.00688]
[1748011532953,0.21509048,109670.0,109660.0,1.00688]
[1748011533467,0.21509048,109670.0,109660.0,0.73356]
[1748011533692,0.21509048,109670.0,109660.0,1.38248]
[1748011535859,0.18259048,109670.0,109660.0,1.38248]
[1748011536912,0.18259048,109670.0,109660.0,1.38244]
[1748011537143,0.24559048,109670.0,109660.0,1.38244]
[1748011539880,0.18259048,109670.0,109660.0,1.38244]
[1748011540091,0.18259048,109670.0,109660.0,1.57394091]
[1748011540310,0.18259048,109670.0,109660.0,1.38244]
[1748011540739,0.18259048,109670.0,109660.0,1.5648219]
[1748011540946,0.18259048,109670.0,109660.0,1.38244]
[1748011542388,0.21419048,109670.0,109660.0,1.3816]
[1748011542818,0.18259048,109670.0,109660.0,1.3816]
[1748011544590,0.21489048,109670.0,109660.0,1.3816]
[1748011545659,0.33753604,109670.0,109660.0,0.76832]
[1748011546093,0.2006561,109640.0,109630.0,0.02545594]
[1748011546296,0.2006561,109640.0,109630.0,1.01349594]
[1748011546717,0.2006561,109640.0,109630.0,1.25303094]
[1748011547396,0.2006561,109640.0,109630.0,1.23730535]
[1748011547606,0.2006561,109640.0,109630.0,1.24030535]
[1748011547814,0.2006561,109640.0,109630.0,1.00077035]
[1748011548857,0.2319561,109640.0,109630.0,0.66077035]
[1748011549062,0.2006561,109640.0,109630.0,0.66077035]
[1748011549299,0.2006561,109640.0,109630.0,0.84320216]
[1748011549507,0.2006561,109640.0,109630.0,1.61323435]
[1748011549968,0.2006561,109640.0,109630.0,1.15625635]
[1748011550181,0.2006561,109640.0,109630.0,1.11793635]
[1748011550391,0.2006561,109640.0,109630.0,1.11493635]